[Event "Turkish Super League 2019"]
[Site "Konya"]
[Date "2019.07.18"]
[Round "2"]
[White "Gholami, Aryan"]
[Black "Kerigan, Demre"]
[Result "1/2-1/2"]
[ECO "B06"]
[WhiteElo "2532"]
[BlackElo "2398"]
[Annotator "ChessBase"]
[PlyCount "83"]
[EventDate "2019.07.17"]
[EventType "team-tourn"]
[EventCountry "TUR"]
[SourceTitle "playchess.com"]
[Source "ChessBase"]
[SourceQuality "1"]
[TimeControl "40/5400+30:1800+30"]

1. d4 g6 2. e4 Bg7 3. Nc3 d6 4. Be3 a6 5. a4 Nf6 6. f3 O-O 7. Qd2 Nc6 8. Nge2 e5 9. d5 Ne7 10. Nd1 Ne8 11. g4 f5 12. gxf5 gxf5 13. Bg5 Nf6 14. Nf2 Qe8 15. Rg1 fxe4 16. fxe4 Ng6 17. Ng3 Nf4 18. Nd3 Kh8 19. Be2 Qg6 20. Bxf4 Nxe4 21. Qe3 exf4 22. Nxf4 Qg5 23. Ngh5 Qh4+ 24. Kd1 Qf2 25. Qxf2 Nxf2+ 26. Ke1 Be5 27. Kxf2 Bxf4 28. Nxf4 Rxf4+ 29. Ke3 Rf8 30. Raf1 Bf5 31. Kd2 Be4 32. c4 a5 33. Bh5 Bg6 34. Bxg6 hxg6 35. Rxf8+ Rxf8 36. Rxg6 Rf2+ 37. Kc3 Rxh2 38. Re6 Rh3+ 39. Kc2 Rh7 40. Re8+ Kg7 41. Re7+ Kg6 42. Re6+ 1/2-1/2

[Event "Turkish Super League 2019"]
[Site "Konya"]
[Date "2019.07.18"]
[Round "2"]
[White "Ali Marandi, Cemil Can"]
[Black "Soysal, Serkan"]
[Result "1-0"]
[ECO "D03"]
[WhiteElo "2527"]
[BlackElo "2431"]
[Annotator "ChessBase"]
[PlyCount "75"]
[EventDate "2019.07.17"]
[EventType "team-tourn"]
[EventCountry "TUR"]
[SourceTitle "playchess.com"]
[Source "ChessBase"]
[SourceQuality "1"]
[TimeControl "40/5400+30:1800+30"]

1. d4 {[%emt 0:00:30]} Nf6 {[%emt 0:00:30]} 2. Bg5 {[%emt 0:00:30]} d5 {[%emt 0:00:00]} 3. e3 {[%emt 0:00:30]} c5 {[%emt 0:00:00]} 4. Nd2 {[%emt 0:00:30]} Nc6 {[%emt 0:03:30]} 5. c3 {[%emt 0:01:30]} cxd4 {[%emt 0:03:30]} 6. exd4 {[%emt 0:01:30]} e6 {[%emt 0:02:30]} 7. Bd3 {[%emt 0:00:30]} h6 {[%emt 0:03:30]} 8. Bh4 {[%emt 0:00:30]} Bd6 {[%emt 0:05:30]} 9. Ngf3 {[%emt 0:02:30]} O-O {[%emt 0:00:30]} 10. O-O {[%emt 0:00:30]} Be7 {[%emt 0:15:30]} 11. Re1 {[%emt 0:03:30]} Nd7 {[%emt 0:04:30]} 12. Bxe7 {[%emt 0:01:30]} Qxe7 {[%emt 0:02:30]} 13. Nf1 {[%emt 0:01:30]} b6 {[%emt 0:16:30]} 14. Ne3 {[%emt 0:02:30]} Nf6 {[%emt 0:02:30]} 15. Ne5 {[%emt 0:10:30]} Nxe5 {[%emt 0:00:30]} 16. dxe5 {[%emt 0:00:30]} Nd7 {[%emt 0:00:00]} 17. f4 {[%emt 0:05:30]} Nc5 {[%emt 0:04:00]} 18. f5 {[%emt 0:06:30]} Qg5 {[%emt 0:10:30]} 19. f6 {[%emt 0:02:30]} Bb7 {[%emt 0:04:26]} 20. Bc2 {[%emt 0:06:30]} gxf6 {[%emt 0:04:45]} 21. exf6 {[%emt 0:05:30]} Rad8 {[%emt 0:07:22]} 22. Ng4 {[%emt 0:08:30]} Ne4 {[%emt 0:01:00]} 23. Qf3 {[%emt 0:00:30]} h5 {[%emt 0:01:56]} 24. Nf2 {[%emt 0:00:30]} Nxf6 {[%emt 0:02:25]} 25. Nh3 {[%emt 0:01:30]} Qh6 {[%emt 0:00:12]} 26. Re5 {[%emt 0:03:30]} Kh8 {[%emt 0:02:14]} 27. Rg5 {[%emt 0:04:30]} Rg8 {[%emt 0:01:34]} 28. Qf4 {[%emt 0:00:30]} Rxg5 {[%emt 0:01:34]} 29. Nxg5 {[%emt 0:00:30]} Kg7 {[%emt 0:00:24]} 30. Rf1 {[%emt 0:00:30]} Rd7 {[%emt 0:00:35]} 31. Ba4 {[%emt 0:07:30]} Re7 {[%emt 0:00:18]} 32. Qe5 {[%emt 0:00:00]} Ba6 {[%emt 0:00:25]} 33. Rf3 {[%emt 0:00:00]} Qg6 {[%emt 0:00:46]} 34. Bc2 {[%emt 0:02:30]} Qh6 {[%emt 0:00:09]} 35. Rg3 {[%emt 0:00:30]} Kh8 {[%emt 0:00:30]} 36. Qb8+ {[%emt 0:00:30]} Ne8 {[%emt 0:00:25]} 37. Qxe8+ {[%emt 0:00:30]} Rxe8 {[%emt 0:00:30]} 38. Nxf7# {[%emt 0:00:00]} 1-0

[Event "Turkish Super League 2019"]
[Site "Konya"]
[Date "2019.07.18"]
[Round "2"]
[White "Iljiushenok, Ilia"]
[Black "Benidze, Davit"]
[Result "1/2-1/2"]
[ECO "C41"]
[WhiteElo "2520"]
[BlackElo "2469"]
[Annotator "ChessBase"]
[PlyCount "82"]
[EventDate "2019.07.17"]
[EventType "team-tourn"]
[EventCountry "TUR"]
[SourceTitle "playchess.com"]
[Source "ChessBase"]
[SourceQuality "1"]
[TimeControl "40/5400+30:1800+30"]

1. e4 d6 2. d4 Nf6 3. Nc3 e5 4. Nf3 Nbd7 5. Bc4 Be7 6. O-O O-O 7. Re1 c6 8. a4 h6 9. h3 Re8 10. a5 Bf8 11. dxe5 dxe5 12. Nh4 Nc5 13. Qf3 Be6 14. Rd1 Qc7 15. Bxe6 Rxe6 16. Nf5 Kh7 17. Be3 Ncd7 18. g4 Bc5 19. Kh1 Bxe3 20. fxe3 Nf8 21. Rd2 g6 22. Ng3 Rd8 23. Rf2 Kh8 24. h4 N8h7 25. Rg1 Qe7 26. Rh2 Ng8 27. Nf1 Red6 28. Qg3 R8d7 29. Rf2 Rf6 30. Rh2 Re6 31. Nd2 Qb4 32. Nb3 b5 33. axb6 axb6 34. g5 h5 35. Rf2 b5 36. Rgf1 Kg7 37. Qh3 Nf8 38. Kg1 Red6 39. Qg3 Re6 {[%emt 1:10:30]} 40. Qh3 {[%emt 1:17:00]} Red6 {[%emt 0:00:30]} 41. Qg3 {[%emt 0:30:30]} Re6 {[%emt 0:30:30]} 1/2-1/2

[Event "Turkish Super League 2019"]
[Site "Konya"]
[Date "2019.07.18"]
[Round "2"]
[White "Annaberdiev, Meilis"]
[Black "Asadli, Vugar"]
[Result "1/2-1/2"]
[ECO "A16"]
[WhiteElo "2515"]
[BlackElo "2502"]
[Annotator "ChessBase"]
[PlyCount "57"]
[EventDate "2019.07.17"]
[EventType "team-tourn"]
[EventCountry "TUR"]
[SourceTitle "playchess.com"]
[Source "ChessBase"]
[SourceQuality "1"]
[TimeControl "40/5400+30:1800+30"]

1. Nf3 {[%emt 0:00:30]} Nf6 {[%emt 0:00:30]} 2. c4 {[%emt 0:00:00]} g6 {[%emt 0:00:30]} 3. Nc3 {[%emt 0:00:00]} d5 {[%emt 0:00:00]} 4. cxd5 {[%emt 0:00:30]} Nxd5 {[%emt 0:01:00]} 5. e4 {[%emt 0:00:30]} Nxc3 {[%emt 0:00:30]} 6. dxc3 {[%emt 0:00:30]} Qxd1+ {[%emt 0:00:00]} 7. Kxd1 {[%emt 0:00:30]} f6 {[%emt 0:00:00]} 8. Kc2 {[%emt 0:00:30]} e5 {[%emt 0:00:30]} 9. Bc4 {[%emt 0:00:00]} Bd6 {[%emt 0:04:30]} 10. Be3 {[%emt 0:03:00]} Ke7 {[%emt 0:02:30]} 11. Nd2 {[%emt 0:03:30]} Nd7 {[%emt 0:05:30]} 12. b4 {[%emt 0:08:30]} Rd8 {[%emt 0:03:30]} 13. h4 {[%emt 0:13:30]} a5 {[%emt 0:04:30]} 14. a3 {[%emt 0:00:30]} Nf8 {[%emt 0:01:30]} 15. Be2 {[%emt 0:08:30]} axb4 {[%emt 0:07:30]} 16. axb4 {[%emt 0:00:30]} Bd7 {[%emt 0:03:30]} 17. Nc4 {[%emt 0:03:30]} Ne6 {[%emt 0:01:30]} 18. h5 {[%emt 0:09:30]} g5 {[%emt 0:00:30]} 19. g3 {[%emt 0:03:30]} Bc6 {[%emt 0:04:30]} 20. f3 {[%emt 0:04:30]} b6 {[%emt 0:00:30]} 21. Nxd6 {[%emt 0:06:30]} Kxd6 {[%emt 0:00:30]} 22. Kb2 {[%emt 0:06:30]} Ke7 {[%emt 0:01:30]} 23. Rxa8 {[%emt 0:03:30]} Rxa8 {[%emt 0:04:30]} 24. g4 {[%emt 0:05:13]} Nf4 {[%emt 0:03:30]} 25. Bc4 {[%emt 0:00:55]} Ng2 {[%emt 0:02:30]} 26. Bc1 {[%emt 0:01:32]} Nf4 {[%emt 0:01:30]} 27. Be3 {[%emt 0:03:42]} Ng2 {[%emt 0:00:30]} 28. Bc1 {[%emt 0:00:30]} Nf4 {[%emt 0:00:30]} 29. Be3 {[%emt 0:05:37]} 1/2-1/2

[Event "Turkish Super League 2019"]
[Site "Konya"]
[Date "2019.07.18"]
[Round "2"]
[White "Esen, Baris"]
[Black "Saric, Ivan"]
[Result "1-0"]
[ECO "A30"]
[WhiteElo "2478"]
[BlackElo "2681"]
[Annotator "RC"]
[PlyCount "215"]
[EventDate "2019.07.17"]
[EventType "team-tourn"]
[EventCountry "TUR"]
[SourceTitle "playchess.com"]
[Source "ChessBase"]
[SourceQuality "1"]
[TimeControl "40/5400+30:1800+30"]

1. Nf3 c5 2. c4 Nc6 3. d4 cxd4 4. Nxd4 Qb6 5. Nc2 e6 6. e3 Nf6 7. Nc3 d5 8. cxd5 exd5 9. Be2 Bf5 10. O-O Rd8 11. b3 Bd6 12. Bb2 Bb8 13. Nb5 Ne4 14. Rc1 O-O 15. Ncd4 Nxd4 16. Nxd4 Qh6 17. g3 Bh3 18. Re1 f5 19. Bf1 f4 20. exf4 Bxf4 21. Bxh3 Qxh3 22. Rc2 Be5 23. f3 Bxd4+ 24. Qxd4 Nf6 25. Qxa7 Nh5 26. Qe3 Rd6 27. Ba3 Rg6 28. Qe7 Ra8 29. Bd6 h6 {[%emt 1:43:59]} 30. Qxb7 {[%emt 1:42:45]} Rd8 {[%emt 0:00:30]} 31. Bc7 {[%emt 0:00:30]} Rd7 {[%emt 0:00:00]} 32. Qc8+ {[%emt 0:00:00]} Kh7 {[%emt 0:00:00]} 33. Re8 {[%emt 0:00:00]} Re6 {[%emt 0:00:00]} 34. Qxd7 {[%emt 0:00:00]} Re1+ {[%emt 0:00:00]} 35. Rxe1 {[%emt 0:00:00]} Qxd7 {[%emt 0:00:00]} 36. Be5 {[%emt 0:00:00]} Qf5 {[%emt 0:00:00]} 37. Rf2 {[%emt 0:00:00]} Qe6 {[%emt 0:00:00]} 38. Rfe2 {[%emt 0:00:00]} Nf6 {[%emt 0:00:00]} 39. Bxf6 {[%emt 0:00:00]} Qxf6 {[%emt 0:00:00]} 40. Kg2 {[%emt 0:00:00]} Qc3 {[%emt 0:00:00]} 41. Rd1 {[%emt 0:06:15]} d4 {[%emt 0:07:01]} 42. Red2 {[%emt 0:04:30]} Qe3 {[%emt 0:00:30]} 43. b4 {[%emt 0:03:30]} g5 {[%emt 0:00:30]} 44. Rd3 {[%emt 0:04:30]} Qe2+ {[%emt 0:00:30]} 45. Kg1 {[%emt 0:00:30]} Qxa2 {[%emt 0:03:30]} 46. Rxd4 {[%emt 0:00:50]} Qe2 {[%emt 0:00:30]} 47. Rd7+ {[%emt 0:02:02]} Kg8 {[%emt 0:00:30]} 48. R7d3 {[%emt 0:04:25]} Qb2 {[%emt 0:00:00]} 49. R1d2 {[%emt 0:05:26]} Qxb4 {[%emt 0:01:00]} 50. Rd7 {[%emt 0:00:04]} h5 {[%emt 0:02:30]} 51. Re2 {[%emt 0:02:47]} Kf8 {[%emt 0:00:30]} 52. Rd5 {[%emt 0:00:57]} Qb1+ {[%emt 0:01:30]} 53. Kg2 {[%emt 0:00:44]} Qc1 {[%emt 0:02:30]} 54. Rd4 {[%emt 0:03:22]} Qc3 {[%emt 0:03:37]} 55. Rd5 {[%emt 0:02:43]} Qc1 {[%emt 0:01:01]} 56. h4 {[%emt 0:00:24]} gxh4 {[%emt 0:01:07]} 57. gxh4 {[%emt 0:00:45]} Qc4 {[%emt 0:01:15]} 58. Rf5+ {[%emt 0:00:11]} Kg7 {[%emt 0:00:00]} 59. Re4 {[%emt 0:00:15]} Qc2+ {[%emt 0:06:06]} 60. Kg3 {[%emt 0:00:05]} Qc7+ {[%emt 0:01:40]} 61. Ree5 {[%emt 0:00:48]} Qc1 {[%emt 0:00:14]} 62. Rxh5 {[%emt 0:02:15]} Qg1+ {[%emt 0:00:04]} 63. Kf4 {[%emt 0:00:00]} Qh2+ {[%emt 0:01:39]} 64. Kf5 {[%emt 0:00:02]} Qf2 {[%emt 0:00:32]} 65. Kf4 {[%emt 0:01:12]} Qh2+ {[%emt 0:00:30]} 66. Kf5 {[%emt 0:00:30]} Qf2 {[%emt 0:00:00]} 67. Rg5+ {[%emt 0:00:26]} Kf7 {[%emt 0:00:34]} 68. Kg4 {[%emt 0:00:40]} Qg2+ {[%emt 0:00:14]} 69. Kf4 {[%emt 0:00:21]} Qh3 {[%emt 0:04:45]} 70. Ref5+ {[%emt 0:00:35]} Ke7 {[%emt 0:01:07]} 71. Rg4 {[%emt 0:00:11]} Qh2+ {[%emt 0:00:25]} 72. Kg5 {[%emt 0:00:30]} Qd2+ {[%emt 0:00:30]} 73. Kg6 {[%emt 0:00:07]} Qd6+ {[%emt 0:00:00]} 74. Kg7 {[%emt 0:00:13]} Qd3 {[%emt 0:00:14]} 75. Re4+ {[%emt 0:00:33]} Kd8 {[%emt 0:00:31]} 76. h5 {[%emt 0:00:27]} Qc3+ {[%emt 0:00:21]} 77. Rf6 {[%emt 0:00:55]} Qc7+ {[%emt 0:00:18]} 78. Kg6 {[%emt 0:00:36]} Qg3+ {[%emt 0:00:53]} 79. Rg4 {[%emt 0:00:06]} Qe5 {[%emt 0:00:10]} 80. h6 {[%emt 0:01:27]} Qe8+ {[%emt 0:00:36]} 81. Rf7 {[%emt 0:00:28]} Qg8+ {[%emt 0:00:04]} 82. Kf6 {[%emt 0:00:46]} Qh8+ {[%emt 0:00:30]} 83. Kf5 {[%emt 0:00:00]} Ke8 {[%emt 0:00:00]} 84. Rf6 {[%emt 0:01:03]} Qh7+ {[%emt 0:00:14]} 85. Kg5 {[%emt 0:00:05]} Qg8+ {[%emt 0:01:14]} 86. Kh4 {[%emt 0:00:09]} Qa2 {[%emt 0:00:00]} 87. Re4+ {[%emt 0:00:28]} Kd7 {[%emt 0:00:02]} 88. Kg5 {[%emt 0:00:30]} Qd5+ {[%emt 0:01:11]} 89. Kg6 {[%emt 0:00:17]} Qg8+ {[%emt 0:00:06]} 90. Kh5 {[%emt 0:00:03]} Qd5+ {[%emt 0:00:00]} 91. Kg4 {[%emt 0:00:35]} Qg8+ {[%emt 0:00:19]} 92. Kf4 {[%emt 0:00:13]} Qa2 {[%emt 0:01:46]} 93. Rfe6 {[%emt 0:01:57]} Qh2+ {[%emt 0:00:41]} 94. Kg5 {[%emt 0:00:15]} Qg2+ {[%emt 0:02:28]} 95. Kf6 {[%emt 0:00:30]} Qxf3+ {[%emt 0:00:30]} 96. Kg7 {[%emt 0:00:08]} Qg2+ {[%emt 0:00:05]} 97. Kh8 {[%emt 0:00:00]} Qf3 {[%emt 0:00:45]} 98. Re7+ {[%emt 0:00:00]} Kd8 {[%emt 0:00:53]} 99. Re8+ {[%emt 0:00:15]} Kd7 {[%emt 0:00:00]} 100. R4e7+ {[%emt 0:00:41]} Kd6 {[%emt 0:00:00]} 101. Rg7 {[%emt 0:01:02]} Qc3 {[%emt 0:02:48]} 102. h7 {[%emt 0:00:42]} Qb3 {[%emt 0:00:20]} 103. Ra8 {[%emt 0:00:19]} Ke6 {[%emt 0:00:20]} 104. Ra6+ {[%emt 0:01:40]} Kf5 {[%emt 0:00:05]} 105. Ra8 {[%emt 0:00:02]} Qb4 {[%emt 0:01:03]} 106. Kg8 {[%emt 0:00:46]} Qc4+ {[%emt 0:00:02]} 107. Rf7+ {[%emt 0:00:43]} Kg6 {[%emt 0:00:05]} 108. Raf8 {[%emt 0:00:06]} 1-0

[Event "Turkish Super League 2019"]
[Site "Konya"]
[Date "2019.07.18"]
[Round "2"]
[White "Daulyte-Cornette, Deimante"]
[Black "Dordzhieva, Dinara"]
[Result "1-0"]
[ECO "B51"]
[WhiteElo "2444"]
[BlackElo "2306"]
[Annotator "NA"]
[PlyCount "47"]
[EventDate "2019.07.17"]
[EventType "team-tourn"]
[EventCountry "TUR"]
[SourceTitle "playchess.com"]
[Source "ChessBase"]
[SourceQuality "1"]
[TimeControl "40/5400+30:1800+30"]

1. e4 {[%emt 0:00:30]} c5 {[%emt 0:00:30]} 2. Nf3 {[%emt 0:00:00]} d6 {[%emt 0:00:30]} 3. Bb5+ {[%emt 0:00:00]} Nd7 {[%emt 0:00:00]} 4. d4 {[%emt 0:00:30]} Ngf6 {[%emt 0:00:00]} 5. O-O {[%emt 0:00:30]} a6 {[%emt 0:03:30]} 6. Bxd7+ {[%emt 0:04:30]} Nxd7 {[%emt 0:00:00]} 7. Bg5 {[%emt 0:04:30]} Qc7 {[%emt 0:14:00]} 8. Nc3 {[%emt 0:03:30]} e6 {[%emt 0:00:00]} 9. Re1 {[%emt 0:01:30]} f6 $16 {[%emt 0:09:00]} (9... cxd4 $1 $11 {keeps the balance.} 10. Qxd4 (10. Nxd4 Ne5 $11) 10... f6) 10. Bh4 {[%emt 0:05:30]} Be7 {[%emt 0:30:30]} 11. e5 {[%emt 0:05:30]} cxd4 {[%emt 0:04:30]} 12. exd6 {[%emt 0:05:30]} Qxd6 {[%emt 0:00:30]} 13. Nxd4 {[%emt 0:00:30]} e5 {[%emt 0:05:30]} 14. Nf5 {[%emt 0:04:30]} Qxd1 {[%emt 0:00:30]} 15. Raxd1 {[%emt 0:00:00]} g5 {[%emt 0:00:30]} 16. Nd5 {[%emt 0:10:00]} Bd8 {[%emt 0:02:30]} 17. Nd6+ {[%emt 0:04:30]} Kf8 {[%emt 0:00:00]} 18. Bg3 {[%emt 0:00:30]} Nc5 {[%emt 0:08:47]} 19. f3 {[%emt 0:08:30]} Be7 {[%emt 0:03:55]} 20. Nb6 {[%emt 0:02:30]} Bxd6 {[%emt 0:03:19]} 21. Rxd6 {[%emt 0:00:00]} Ke7 {[%emt 0:00:58]} 22. Rd5 {[%emt 0:03:00]} Rb8 {[%emt 0:01:37]} 23. Rxc5 {[%emt 0:00:30]} Be6 {[%emt 0:00:00]} 24. Bxe5 {[%emt 0:00:30]} 1-0

[Event "Turkish Super League 2019"]
[Site "Konya"]
[Date "2019.07.18"]
[Round "2"]
[White "Ozen, Deniz"]
[Black "Tasdogen, Dincer"]
[Result "1/2-1/2"]
[ECO "B27"]
[WhiteElo "2430"]
[BlackElo "2310"]
[Annotator "NA"]
[PlyCount "60"]
[EventDate "2019.07.17"]
[EventType "team-tourn"]
[EventCountry "TUR"]
[SourceTitle "playchess.com"]
[Source "ChessBase"]
[SourceQuality "1"]
[TimeControl "40/5400+30:1800+30"]

1. e4 {[%emt 0:00:30]} c5 {[%emt 0:00:30]} 2. Nf3 {[%emt 0:00:30]} g6 {[%emt 0:00:30]} 3. c3 {[%emt 0:00:30]} Bg7 {[%emt 0:00:30]} 4. d4 {[%emt 0:00:30]} cxd4 {[%emt 0:00:30]} 5. cxd4 {[%emt 0:00:00]} d5 {[%emt 0:00:00]} 6. exd5 {[%emt 0:00:00]} Nf6 {[%emt 0:00:00]} 7. Bb5+ {[%emt 0:00:30]} Nbd7 {[%emt 0:00:30]} 8. d6 {[%emt 0:01:30]} exd6 {[%emt 0:00:30]} 9. Qe2+ {[%emt 0:00:30]} Qe7 {[%emt 0:00:30]} 10. Qxe7+ {[%emt 0:00:30]} Kxe7 {[%emt 0:00:00]} 11. O-O {[%emt 0:00:30]} Rd8 {[%emt 0:02:00]} 12. Nc3 {[%emt 0:07:30]} Nb6 {[%emt 0:06:30]} 13. h3 {[%emt 0:01:30]} a6 {[%emt 0:04:30]} 14. Bd3 {[%emt 0:03:30]} Bd7 $11 {[%emt 0:06:30]} 15. Re1+ {[%emt 0:09:30]} Kf8 {[%emt 0:00:00]} 16. Ne4 {[%emt 0:13:30]} Bc6 {[%emt 0:17:00]} 17. Nxf6 {[%emt 0:14:30]} Bxf6 {[%emt 0:00:30]} 18. Bh6+ {[%emt 0:00:00]} Bg7 {[%emt 0:04:30]} 19. Bxg7+ {[%emt 0:02:00]} Kxg7 {[%emt 0:00:30]} 20. Nd2 {[%emt 0:09:30]} Nd5 {[%emt 0:05:30]} 21. Be4 {[%emt 0:03:30]} Rac8 {[%emt 0:08:30]} 22. Nc4 {[%emt 0:06:30]} Nf6 {[%emt 0:05:30]} 23. Bxc6 {[%emt 0:02:30]} Rxc6 {[%emt 0:00:30]} 24. Ne3 {[%emt 0:01:30]} Rdc8 {[%emt 0:00:30]} 25. Rad1 {[%emt 0:00:30]} h5 {[%emt 0:00:30]} 26. Kf1 {[%emt 0:00:00]} Kf8 {[%emt 0:00:30]} 27. Ke2 {[%emt 0:00:00]} Ke7 {[%emt 0:00:30]} 28. Kd3 {[%emt 0:00:30]} Kd7 {[%emt 0:00:00]} 29. f3 {[%emt 0:00:30]} b5 {[%emt 0:01:00]} 30. h4 {[%emt 0:00:00]} R6c7 {[%emt 0:00:00]} 1/2-1/2

[Event "Turkish Super League 2019"]
[Site "Konya"]
[Date "2019.07.18"]
[Round "2"]
[White "Gadimbayli, Abdulla"]
[Black "Visakh N R"]
[Result "1/2-1/2"]
[ECO "C43"]
[WhiteElo "2414"]
[BlackElo "2526"]
[Annotator "ChessBase"]
[PlyCount "78"]
[EventDate "2019.07.17"]
[EventType "team-tourn"]
[EventCountry "TUR"]
[SourceTitle "playchess.com"]
[Source "ChessBase"]
[SourceQuality "1"]
[TimeControl "40/5400+30:1800+30"]

1. e4 {[%emt 0:00:30]} e5 {[%emt 0:00:30]} 2. Nf3 {[%emt 0:00:00]} Nf6 {[%emt 0:00:00]} 3. d4 {[%emt 0:00:00]} Nxe4 {[%emt 0:00:00]} 4. Bd3 {[%emt 0:00:30]} Nc6 {[%emt 0:00:30]} 5. dxe5 {[%emt 0:22:30]} d5 {[%emt 0:04:30]} 6. exd6 {[%emt 0:02:30]} Nxd6 {[%emt 0:00:30]} 7. O-O {[%emt 0:00:30]} Be7 {[%emt 0:00:30]} 8. c3 {[%emt 0:00:30]} h6 {[%emt 0:08:30]} 9. Qc2 {[%emt 0:04:30]} O-O {[%emt 0:07:30]} 10. h3 {[%emt 0:06:30]} Be6 {[%emt 0:02:30]} 11. Bf4 {[%emt 0:03:30]} Qd7 {[%emt 0:07:30]} 12. Nbd2 {[%emt 0:04:30]} f5 {[%emt 0:02:30]} 13. Nb3 {[%emt 0:04:30]} Bd5 {[%emt 0:00:30]} 14. Nbd4 {[%emt 0:10:30]} Nxd4 {[%emt 0:17:30]} 15. Nxd4 {[%emt 0:00:30]} c5 {[%emt 0:00:30]} 16. Bxd6 {[%emt 0:02:30]} cxd4 {[%emt 0:00:30]} 17. Bxe7 {[%emt 0:00:30]} Qxe7 {[%emt 0:00:00]} 18. Bxf5 {[%emt 0:02:30]} dxc3 {[%emt 0:00:00]} 19. bxc3 {[%emt 0:00:30]} Rae8 {[%emt 0:00:30]} 20. Rad1 {[%emt 0:09:30]} Bc6 {[%emt 0:08:30]} 21. Bg6 {[%emt 0:01:30]} Qg5 {[%emt 0:04:30]} 22. f4 {[%emt 0:00:30]} Qc5+ {[%emt 0:00:30]} 23. Qf2 {[%emt 0:00:30]} Qxf2+ {[%emt 0:00:30]} 24. Rxf2 {[%emt 0:00:30]} Re3 {[%emt 0:00:30]} 25. c4 {[%emt 0:03:14]} Be8 {[%emt 0:04:30]} 26. Bc2 {[%emt 0:04:02]} Kf7 {[%emt 0:03:30]} 27. Rd4 {[%emt 0:03:57]} Bc6 {[%emt 0:01:30]} 28. c5 {[%emt 0:00:47]} Ke7 {[%emt 0:01:30]} 29. Ba4 {[%emt 0:01:26]} Rd8 {[%emt 0:01:30]} 30. Rxd8 {[%emt 0:05:20]} Kxd8 {[%emt 0:00:00]} 31. Bxc6 {[%emt 0:00:08]} bxc6 {[%emt 0:00:00]} 32. f5 {[%emt 0:00:00]} Ke7 {[%emt 0:00:30]} 33. Rb2 {[%emt 0:00:00]} Kf6 {[%emt 0:00:30]} 34. Rd2 {[%emt 0:01:33]} Ra3 {[%emt 0:04:59]} 35. Rd6+ {[%emt 0:00:05]} Kxf5 {[%emt 0:00:16]} 36. Rxc6 {[%emt 0:00:30]} Rxa2 {[%emt 0:00:15]} 37. Rc7 {[%emt 0:00:14]} Kf6 {[%emt 0:01:41]} 38. c6 {[%emt 0:00:12]} Rc2 {[%emt 0:00:34]} 39. Rxa7 {[%emt 0:00:05]} Rxc6 {[%emt 0:00:00]} 1/2-1/2

[Event "Turkish Super League 2019"]
[Site "Konya"]
[Date "2019.07.18"]
[Round "2"]
[White "Gulbas, Cemil"]
[Black "Yaran, Siar"]
[Result "1/2-1/2"]
[ECO "E05"]
[WhiteElo "2380"]
[BlackElo "2197"]
[Annotator "NA"]
[PlyCount "89"]
[EventDate "2019.07.17"]
[EventType "team-tourn"]
[EventCountry "TUR"]
[SourceTitle "playchess.com"]
[Source "ChessBase"]
[SourceQuality "1"]
[TimeControl "40/5400+30:1800+30"]

1. Nf3 Nf6 2. c4 e6 3. g3 d5 4. Bg2 Be7 5. O-O O-O 6. d4 dxc4 7. Qc2 a6 8. Qxc4 b5 9. Qc2 Bb7 10. Bd2 Ra7 11. Rc1 Be4 12. Qb3 Nc6 13. e3 Qa8 14. Nc3 Bxf3 15. Bxf3 Nxd4 16. exd4 Qxf3 17. Nxb5 Qxb3 18. axb3 Rb7 19. Rxc7 Rxb5 20. Rxe7 Rxb3 21. Bc3 Ra8 22. Rc7 h6 23. Rc6 a5 24. Ra4 Nd5 25. Rc5 Kh7 26. Kf1 Kg6 27. Ke2 Rab8 28. Raxa5 Rxb2+ 29. Bxb2 Rxb2+ 30. Kf3 Rb3+ 31. Kg2 Rb4 32. Rxd5 exd5 33. Rxd5 Kf6 34. Kf3 Ke6 35. Ke4 Rb1 36. Re5+ Kd6 37. Ra5 Re1+ 38. Kf3 Rd1 39. Ke3 Re1+ 40. Kd2 Rb1 41. Ra7 {[%emt 1:33:30]} Ke6 {[%emt 1:54:30]} 42. Ra6+ {[%emt 0:00:30]} Kd5 {[%emt 0:00:30]} 43. Ra7 {[%emt 0:00:30]} Ke6 {[%emt 0:00:30]} 44. Ra6+ {[%emt 0:00:30]} Kd5 {[%emt 0:00:30]} 45. Ra7 {[%emt 0:00:30]} 1/2-1/2